Cogmind - Beta 16.1 @@@ ROGUE MODE // 2026.01.16 @ 23:32:36 Player: BlobtheGreat Result: Destroyed by Vortex Trap Performance ------------- Evolutions (7) 3500 Regions Visited (23) 4600 Robots Destroyed (217) 1085 Value Destroyed (7601) 7601 Prototype IDs (51) 1020 Alien Tech Used (0) 0 Bonus (4241) 4241 TOTAL SCORE: 22047 Bonus ------- High Alert Combat Kills 119 Follower Combat Kills 1354 Registered with UFD 300 Met Optimus in HQ 500 Met Data Miner 300 Met Warlord at Base 500 MAIN.C Attacked Warlord 500 Warlord Defense Kills 668 Cogmind --------- Core Integrity 0/1300 Matter 214/300 Energy 67/100 System Corruption 16% Temperature Cool (30) Movement Hovering (160) Ox1 Location -3/Armory Parts ------- > --- POWER (2) -------- (None) > --- PROPULSION (6) --- Combat Linear Gravjet > --- UTILITY (9) ------ Large Storage Unit Advanced Signal Interpreter Experimental Core Analyzer Graphene Brace Improved Trap Extractor (0/6) > --- WEAPON (4) ------- (None) > --- INVENTORY (15) --- Quantum Reactor Light Quantum Reactor Combat Linear Gravjet Matter Compressor (0) Precision Matter Filter Vortex Shotgun (50) Vortex Shotgun (50) Matter Neutralizer Gamma Bomb Array Kinetic Spear PL-3XN's Ring of Power PL-3XN's Ring of Power Disassembled Obliterator Peak State ------------ > --- POWER ------------ Light Particle Reactor Micro Antimatter Reactor > --- PROPULSION ------- Cooled Gravmag System Cooled Antigrav System Antigrav Array Combat Linear Gravjet Combat Linear Gravjet > --- UTILITY ---------- Advanced Heat Sink Advanced Cooling System Large Storage Unit Long-range Sensor Array Advanced Signal Interpreter Experimental Core Analyzer Advanced Transmission Jammer Graphene Brace Improved Hacking Suite > --- WEAPON ----------- Gamma Bomb Array Advanced Remote Datajack Vampiric Broadsword > --- INVENTORY -------- Quantum Reactor Light Quantum Reactor Combat Linear Gravjet Matter Compressor Precision Matter Filter Microactuators Experimental Thermal Shield Advanced Force Field Improved Trap Extractor Vortex Shotgun Vortex Shotgun Matter Neutralizer Kinetic Spear PL-3XN's Ring of Power [Rating: 159] Favorites ----------- Power Heavy Ion Engine Engine Heavy Ion Engine Power Core Fission Core Reactor Vortex Chain Reactor Propulsion Combat Airjet Treads Light Treads Leg Myomer Leg Wheel Armored Huge Wheel Hover Unit Combat Airjet Flight Unit Cooled VTOL Module Utility Large Storage Unit Device IFF Parser Storage Large Storage Unit Processor Core Analyzer Hackware Improved Hacking Suite Protection Hardened Light Armor Plating Weapon Mini Assault Cannon Energy Gun Pulse Rifle Energy Cannon Neutron Cannon Ballistic Gun Assault Rifle Ballistic Cannon Mini Assault Cannon Launcher Long-range Missile Launcher Special Weapon Improved Remote Datajack Impact Weapon Shock Maul Slashing Weapon Katana Piercing Weapon Kinetic Spear Build | -11 -10 -10 -10 -9 -8 -8 -8 -8 -6 -6 -6 -6 -5 -5 -5 -5 -5 -4 -4 -4 -4 -3 -3 ------- Run | Yrd Mat Min Exi Min Mat Sto Rec Scr Fac Low Low Dat Pro Fac Upp Upp War Pro Fac Was Fac Res Arm Slots Evolved 14 | . . . . . 4 . . . 4 . . . . 2 . . . . 2 . . 2 . Power 1 | . . . . . . . . . . . . . . . . . . . 1 . . . . Propulsion 4 | . . . . . 2 . . . 1 . . . . . . . . . 1 . . . . Utility 7 | . . . . . 2 . . . 3 . . . . 1 . . . . . . . 1 . Weapon 2 | . . . . . . . . . . . . . . 1 . . . . . . . 1 . Parts Attached 161 | 7 2 4 . . 26 10 1 13 17 1 1 . 2 14 2 2 19 . 2 1 10 18 9 Power 18 | 1 . . . . 3 1 . 1 1 . . . . 2 . . 1 . 1 . . 3 4 Engine 6 | 1 . . . . 2 1 . 1 . . . . . 1 . . . . . . . . . Core 4 | . . . . . 1 . . . 1 . . . . 1 . . 1 . . . . . . Reactor 8 | . . . . . . . . . . . . . . . . . . . 1 . . 3 4 Propulsion 47 | 2 . 1 . . 11 4 . 4 7 . . . 1 2 . . 7 . 1 1 2 2 2 Treads 16 | 2 . 1 . . 10 3 . . . . . . . . . . . . . . . . . Leg 1 | . . . . . . . . . . . . . . . . . . . . . 1 . . Wheel 1 | . . . . . 1 . . . . . . . . . . . . . . . . . . Hover 28 | . . . . . . 1 . 4 6 . . . 1 2 . . 7 . 1 1 1 2 2 Flight 1 | . . . . . . . . . 1 . . . . . . . . . . . . . . Utility 59 | 2 1 1 . . 5 4 . 6 6 1 1 . . 5 1 1 8 . . . 6 10 1 Device 27 | 1 . 1 . . 1 1 . 3 1 . 1 . . 1 1 . 4 . . . 3 8 1 Storage 7 | 1 1 . . . 2 . . 1 1 . . . . . . . . . . . 1 . . Processor 7 | . . . . . 1 . . . 1 1 . . . . . . 3 . . . . 1 . Hackware 4 | . . . . . . . . . . . . . . 2 . . . . . . 2 . . Protection 14 | . . . . . 1 3 . 2 3 . . . . 2 . 1 1 . . . . 1 . Artifact . | . . . . . . . . . . . . . . . . . . . . . . . . Weapon 37 | 2 1 2 . . 7 1 1 2 3 . . . 1 5 1 1 3 . . . 2 3 2 Energy Gun 4 | . . . . . 2 . . . . . . . . . . . 2 . . . . . . Energy Cannon 3 | . . . . . . . . . 1 . . . . . 1 . . . . . . 1 . Ballistic Gun 7 | 2 . 1 . . 1 . . . . . . . 1 1 . . . . . . . . 1 Ballistic Cannon 3 | . . . . . 3 . . . . . . . . . . . . . . . . . . Launcher 5 | . . 1 . . . 1 . . 1 . . . . . . 1 . . . . . 1 . Special Weapon 7 | . . . . . . . . 2 . . . . . 2 . . 1 . . . . 1 1 Impact Weapon 1 | . . . . . . . 1 . . . . . . . . . . . . . . . . Slashing Weapon 5 | . 1 . . . 1 . . . 1 . . . . . . . . . . . 2 . . Piercing Weapon 2 | . . . . . . . . . . . . . . 2 . . . . . . . . . Special Melee Weapon . | . . . . . . . . . . . . . . . . . . . . . . . . Unidentified Prototypes 22 | . . 1 . . 3 2 1 . 2 . . . . 3 . . 8 . 1 . . 1 . Corrupted Parts 3 | . . . . . . . . 1 . . . . . . . . 1 . . . 1 . . System Corruption 8 | . . . . . . . . 4 . . . . . . . . 2 . . . 2 . . Parts Lost 39 | . . . . 1 1 2 . 1 . . . . 1 2 . . . . . . 6 8 17 Power 7 | . . . . 1 . 1 . 1 . . . . . 1 . . . . . . . 2 1 Propulsion 8 | . . . . . . . . . . . . . 1 . . . . . . . 1 1 5 Utility 17 | . . . . . 1 1 . . . . . . . . . . . . . . 3 4 8 Weapon 7 | . . . . . . . . . . . . . . 1 . . . . . . 2 1 3 Highest Loss Streak 15 | . . . . 1 1 1 . 1 . . . . 1 1 . . . . . . 3 3 15 To Critical Strikes . | . . . . . . . . . . . . . . . . . . . . . . . . Average Backups 14 | 4 10 14 14 14 18 18 18 15 13 14 14 14 13 13 12 12 13 13 12 12 13 12 13 Power 1 | . 1 1 1 1 1 1 1 . . 1 1 1 1 . 1 1 1 1 1 1 . . 1 Propulsion 2 | 2 3 4 4 4 2 2 3 2 2 3 3 3 2 2 2 2 2 4 3 3 3 2 . Utility 6 | . 1 3 5 5 7 7 8 9 7 7 7 7 7 7 7 6 6 5 5 5 5 4 5 Weapon 3 | . 4 4 4 4 6 6 5 2 1 2 2 2 2 2 1 1 2 3 3 3 3 4 4 Tool/Special . | . . . . . . . . . . . . . . . . . . . . . . . . Unused Backups 37 | . 6 1 . . 4 2 . 12 2 . . . . 1 . . 2 . . . 1 4 2 Power 1 | . . . . . 1 . . . . . . . . . . . . . . . . . . Propulsion 10 | . 4 . . . 1 . . 3 . . . . . . . . . . . . . 2 . Utility 15 | . . . . . 2 . . 7 1 . . . . 1 . . 1 . . . . 1 2 Weapon 9 | . 2 1 . . . 2 . 1 1 . . . . . . . . . . . 1 1 . Tool/Special 2 | . . . . . . . . 1 . . . . . . . . 1 . . . . . . Average Slot Usage (%) 92 | . 100 100 100 100 83 87 90 88 97 100 100 100 99 99 99 99 99 100 94 94 89 87 83 Engine 5 | . 14 14 14 14 9 8 9 9 . . . . . 1 5 5 4 . . . . . . Core 1 | . . . . . . . . . 5 6 6 6 6 3 . . . 5 . . . . . Reactor 1 | . . . . . . . . . . . . . . . . . . . 4 5 5 6 8 Treads 8 | . 28 28 28 28 24 18 18 2 . . . . . . . . . . . . . . . Wheel 1 | . . . . . 5 9 9 2 . . . . . . . . . . . . . . . Hover 18 | . . . . . . . . 26 32 33 33 33 32 29 29 29 29 29 31 31 30 25 22 Device 11 | . 14 14 14 14 5 9 9 7 12 13 13 13 13 11 13 11 10 11 10 10 13 21 22 Storage 7 | . 14 14 14 14 9 9 9 9 6 6 6 6 6 5 5 5 5 5 5 5 5 4 4 Processor 10 | . . . . . 3 9 9 9 12 17 20 20 20 17 17 17 17 17 15 15 12 10 9 Hackware 1 | . . . . . . . . . . . . . . 5 5 5 5 5 5 5 5 4 3 Protection 4 | . . . . . 7 6 9 7 11 8 6 6 6 5 3 4 4 5 5 5 3 . . Energy Cannon 1 | . . . . . . . . . 1 6 4 . . . 4 4 4 4 5 3 2 2 . Ballistic Gun 4 | . 27 27 28 24 4 . . . . . . . . . . . . . . . . . . Ballistic Cannon 2 | . . . . . 11 15 16 . . . . . . . . . . . . . . . . Special Weapon 1 | . . . . . . . . . . . . . . 4 5 5 5 5 5 5 1 1 1 Impact Weapon 1 | . . . . . . . . 5 4 . 1 6 5 4 . . . . . . . . . Slashing Weapon 3 | . . . . 4 . 1 . 9 6 6 6 6 6 1 . . . . . . 3 4 3 Piercing Weapon 1 | . . . . . . . . . . . . . . 3 5 5 5 5 5 5 3 2 2 Peak Build Rating 159 | 8 9 20 13 13 42 45 44 54 79 80 81 81 82 95 99 98 125 127 145 148 149 155 159 Average Rating 71 | 6 8 11 13 12 34 42 43 44 75 79 80 81 81 92 96 97 103 126 144 146 145 149 144 On Entrance 72 | . 8 9 13 13 12 41 42 43 48 78 80 81 81 82 91 96 98 125 127 145 148 139 146 Avg Prop Armor Cover (%) 11 | . . . . . 11 16 12 7 . . 4 . . . . . . . . . 5 5 . Naked Turns . | . . . . . . . . . . . . . . . . . . . . . . . . Heaviest Build 89 | 15 30 31 31 31 72 67 67 64 52 52 52 45 49 45 52 52 58 58 79 79 82 89 76 Greatest Support 81 | 40 40 40 40 40 80 40 46 48 60 56 56 56 60 65 63 63 66 66 77 80 81 81 81 Greatest Overweight (x) 3 | . . . . . 3 2 2 2 1 . 1 . . . . . . . 1 . 1 1 1 Average Overweight (x) . | . . . . . 1 1 1 . . . . . . . . . . . 1 . . . . Largest Inventory Capacity 35 | 8 15 15 15 15 20 20 20 20 35 15 15 15 15 15 15 15 15 15 15 15 15 15 15 Average Capacity 16 | 7 13 15 15 15 19 20 20 18 15 15 15 15 15 15 15 15 15 15 15 15 15 15 15 Most Carried 20 | 8 15 15 15 15 20 20 20 20 15 15 15 15 15 15 15 15 15 15 15 14 15 15 15 Average Carried 15 | 5 11 14 15 15 19 19 19 16 14 14 15 15 14 14 13 13 14 15 13 13 14 14 14 Final Capacity 20 | 8 15 15 15 15 20 20 20 15 15 15 15 15 15 15 15 15 15 15 15 15 15 15 15 Final Carried 20 | 8 15 15 15 15 20 20 20 15 15 15 15 15 15 15 12 15 15 15 13 14 12 15 14 Class Distribution -------------------- 44% | Mutant 21% | Commander-Mutant 12% | Scavenger-Gladiator 10% | Scavenger-Mutant 7% | Gladiator Dominant Class ---------------- Mutant | -10/Materials Mutant | -10/Mines Mutant | -10/Exiles Mutant | -9/Mines Mutant | -8/Materials Mutant | -8/Storage Commander-Mutant | -8/Recycling Commander-Mutant | -8/Scraptown Mutant | -6/Factory Mutant | -6/Lower Caves Mutant | -6/Lower Caves Commander-Gladiator | -6/Data Miner Gladiator | -5/Proximity Caves Gladiator | -5/Factory Mutant | -5/Upper Caves Mutant | -5/Upper Caves Mutant | -5/Warlord Scavenger-Mutant | -4/Proximity Caves Scavenger-Mutant | -4/Factory Scavenger-Mutant | -4/Waste Scavenger-Gladiator | -4/Factory Scavenger-Gladiator | -3/Research Scavenger-Gladiator | -3/Armory Resources | -11 -10 -10 -10 -9 -8 -8 -8 -8 -6 -6 -6 -6 -5 -5 -5 -5 -5 -4 -4 -4 -4 -3 -3 ----------- Run | Yrd Mat Min Exi Min Mat Sto Rec Scr Fac Low Low Dat Pro Fac Upp Upp War Pro Fac Was Fac Res Arm Matter Collected 7429 | 306 183 151 . 20 1609 907 140 1046 92 264 65 . 160 269 84 70 280 140 . 170 297 651 525 Remotely . | . . . . . . . . . . . . . . . . . . . . . . . . Salvage Created 9056 | 133 308 22 . 71 1736 874 177 404 128 17 96 . 120 945 169 41 177 132 . 635 1185 1111 575 Parts 468 | 6 17 6 . 2 92 60 10 21 5 . 2 . 13 43 6 3 4 . . . 61 82 35 Haulers Intercepted 14 | . 2 . . . 4 4 . . . . . . . 3 . . . . . . 1 . . Recyclers Shooed 3 | . . . . . 2 . . . . . . . . . . . . . . . 1 . . Parts Field Recycled . | . . . . . . . . . . . . . . . . . . . . . . . . Retrieved Matter . | . . . . . . . . . . . . . . . . . . . . . . . . Parts Self-Destructed 51 | . . . . . . . . . . . 5 . 33 . 5 6 . 2 . . . . . Prevented 5 | . . . . . . . . . . . . . . . . 5 . . . . . . . Parts Restored . | . . . . . . . . . . . . . . . . . . . . . . . . Kills | -11 -10 -10 -10 -9 -8 -8 -8 -8 -6 -6 -6 -6 -5 -5 -5 -5 -5 -4 -4 -4 -4 -3 -3 ------- Run | Yrd Mat Min Exi Min Mat Sto Rec Scr Fac Low Low Dat Pro Fac Upp Upp War Pro Fac Was Fac Res Arm Combat Hostiles Destroyed 148 | . 6 4 . . 34 22 5 2 6 1 1 . 6 5 4 4 6 3 . 3 15 15 6 Melee 39 | . . . . . . . . 2 2 . 1 . 1 5 2 . . 1 . . 11 11 3 Guns 20 | . 6 1 . . 11 . . . . . . . . . . . . . . . . . 2 Cannons 50 | . . . . . 23 22 5 . . . . . . . . . . . . . . . . AOE 39 | . . 3 . . . . . . 4 1 . . 5 . 2 4 6 2 . 3 4 4 1 Classes Destroyed 23 | 2 4 . . . 5 . 1 6 . . 2 . . . . . 1 . . 1 . . 1 Worker 13 | . 1 . . . 3 1 . 1 1 . . . . 2 . . . . . . 1 3 . Builder 10 | . . . . . 1 2 1 . . . . . . 2 . . . . . . 2 2 . Tunneler 7 | 3 . . . . 1 . . . . . . . . 3 . . . . . . . . . Hauler 14 | . 2 . . . 4 4 . . . . . . . 3 . . . . . . 1 . . Recycler 11 | 1 . . . 1 3 1 . . . . . . . 1 . . . . . . 2 2 . Minesweeper 2 | . . . . . . . . . . . 1 . 1 . . . . . . . . . . Drone 9 | . . . . . . . . 8 . . . . . . . . . 1 . . . . . Turret 1 | . . . . . . . . 1 . . . . . . . . . . . . . . . Watcher 6 | . . . . . 2 . . . . . . . . . . . . . . . 2 1 1 Swarmer 47 | . 3 4 . . 3 4 . . 4 1 . . 6 . 3 4 3 . . . 7 5 . Cutter 1 | . . . . . . . . . . . . . . . . . . . . . . . 1 Grunt 41 | . 3 . . . 19 8 1 . . . . . . 2 1 . 2 1 . . 3 1 . Brawler 2 | . . . . . 2 . . . . . . . . . . . . . . . . . . Duelist 1 | . . . . . . . . 1 . . . . . . . . . . . . . . . Sentry 27 | . . . . . 9 10 3 . . . . . . . . . . 1 . . 2 . 2 Demolisher 2 | . . . . . . . . 2 . . . . . . . . . . . . . . . Hunter 3 | . . . . . 1 . . . . . . . . 1 . . . . . . . . 1 Programmer 19 | . . . . . . . 1 . 2 . . . . 3 1 . . . . . 3 9 . Compactor 3 | . . . . . . . . . . . . . . . . . . . . 3 . . . Armor Guard 2 | . . . . . . . . . . . . . . . . . . . . . . . 2 Executioner 1 | . . . . . . . . . . . . . . . . . 1 . . . . . . Guru 1 | . . . . . . . . 1 . . . . . . . . . . . . . . . Scrapper 1 | . . . . . . . . 1 . . . . . . . . . . . . . . . Mutant 1 | . . . . . . . . . . . 1 . . . . . . . . . . . . Best Kill Streak 6 | 4 3 3 . 1 5 6 2 2 5 1 1 . 5 2 3 4 6 2 . 3 5 5 1 Combat Bots Only 6 | . 3 3 . . 4 6 2 2 4 1 1 . 5 1 3 4 6 2 . 3 4 4 1 Max Kills in Single Turn 5 | 1 1 1 . 1 1 2 1 1 5 1 1 . 4 1 3 3 3 1 . 1 4 3 1 Gunslinging . | . . . . . . . . . . . . . . . . . . . . . . . . Exploded 4 | . . 1 . . . . . . 4 1 . . 4 . 2 3 3 1 . 1 3 2 1 Melee 1 | . . . . . . . . 1 1 . 1 . 1 1 1 . . 1 . . 1 1 1 Uniques/NPCs Destroyed . | . . . . . . . . . . . . . . . . . . . . . . . . Combat | -11 -10 -10 -10 -9 -8 -8 -8 -8 -6 -6 -6 -6 -5 -5 -5 -5 -5 -4 -4 -4 -4 -3 -3 -------- Run | Yrd Mat Min Exi Min Mat Sto Rec Scr Fac Low Low Dat Pro Fac Upp Upp War Pro Fac Was Fac Res Arm Hostile Shots Fired 1031 | . 18 28 . 5 143 113 13 58 21 35 21 . 13 32 5 . 19 21 3 . 132 141 210 Missed 349 | . 9 8 . 2 44 36 1 17 5 15 11 . 6 14 2 . 8 11 1 . 47 47 65 Hits 682 | . 9 20 . 3 99 77 12 41 16 20 10 . 7 18 3 . 11 10 2 . 85 94 145 Melee 10 | . . . . 2 1 . . 3 . . . . . . . . . . . . . . 4 Projectile 672 | . 9 20 . 1 98 77 12 38 16 20 10 . 7 18 3 . 11 10 2 . 85 94 141 AOE 3 | . . . . . . . . . . . . . . . . . 1 . . . 2 . . Critical Strikes 37 | . . . . . 5 3 1 1 . . . . . 2 . . . . . . 2 9 14 Actively Blocked 15 | . . . . . . . . . . . . . . . . . . . . . . 7 8 Part Disruptions 2 | . . . . . . . . . . . 1 . . . . . . . . . . 1 . Damage Taken 12212 | . 133 203 . 69 1534 1121 184 397 255 233 135 . 172 370 44 . 279 205 45 . 1799 1912 3122 Core 1802 | . 22 25 . 42 90 165 31 117 40 37 . . . 22 . . 85 45 . . 187 238 656 Absorbed by Shields 545 | . . . . . . . . 5 . . . . . . . . . . . . 122 172 246 Redirected to Shielding 85 | . . . . . . . . . 58 27 . . . . . . . . . . . . . Ignored by Resistances 13 | . . . . . . . . . . . . . . . . . . . . . . 13 . Regen/Repaired (Parts) 362 | . . . . . 259 . . . . . . . . . . . . . . . . . 103 Core Remaining (%) 74 | 100 . . . 64 . . . 26 . . . . 90 . . . . 84 . . 81 . . Volleys Fired 388 | 6 27 10 . . 115 66 10 3 7 10 1 . 4 4 3 5 5 11 1 9 23 17 51 Largest 2 | 2 2 2 . . 2 2 2 1 1 1 1 . 1 1 1 1 1 1 1 1 1 1 1 Hottest 105 | 40 40 45 . . 86 80 80 . 85 85 85 . 85 5 90 90 90 90 90 43 90 105 105 Shots Fired 604 | 12 54 16 . . 219 127 20 3 7 10 2 . 4 4 3 5 5 11 1 8 26 17 50 Gun 187 | 12 54 12 . . 85 . . . . . . . . . . . . . . . . . 24 Cannon 359 | . . . . . 134 127 20 . 6 9 2 . 1 . 2 3 1 5 1 . 24 10 14 Launcher 35 | . . 4 . . . . . . 1 1 . . 3 . 1 2 2 6 . 8 2 3 2 Special 23 | . . . . . . . . 3 . . . . . 4 . . 2 . . . . 4 10 Kinetic 448 | 12 54 12 . . 199 127 20 . . . . . . . . . . . . . . . 24 Thermal 98 | . . . . . 20 . . . 6 9 2 . 1 . 2 3 1 5 1 . 24 10 14 Explosive 31 | . . 4 . . . . . . 1 1 . . 3 . 1 2 2 6 . 8 2 1 . Electromagnetic 4 | . . . . . . . . . . . . . . . . . . . . . . 2 2 Robot Hit Streak 16 | 6 6 1 . . 16 14 8 7 8 . . . . 1 . . 3 4 . 12 1 2 7 Robot Miss Streak 7 | 3 4 5 . . 3 7 2 . . . . . . 3 1 . . . . . 1 3 4 Penetration Max 1 | . . . . . . . . . . . . . . . . . . . . . . . 1 Secondary Targets 4 | . 3 . . . 1 . . . . . . . . . . . . . . . . . . Max Gunslinging Chain 1 | . 1 . . . 1 . . . . . . . . . . . . . . . . . . Shots Hit Robots 500 | 7 34 2 . 1 142 71 14 31 11 . 8 . 4 27 2 . 3 6 . 8 37 49 43 Core Hits 283 | 4 15 5 . 1 69 32 4 15 6 1 1 . 9 13 7 3 16 8 . 6 23 29 16 Critical Kills 3 | . . . . . 1 . . . . . . . . . . . . . . . . . 2 Critical Parts Destroyed 2 | . . . . . . . . 2 . . . . . . . . . . . . . . . Critical Strikes 35 | . . . . . 7 3 3 2 . . 1 . . 2 1 . . . . . 4 4 8 Destroy 6 | . . . . . 1 . . . . . . . . . . . . . . . . . 5 Blast 11 | . . . . . 5 3 3 . . . . . . . . . . . . . . . . Smash 2 | . . . . . . . . 2 . . . . . . . . . . . . . . . Sever 5 | . . . . . 1 . . . . . 1 . . . . . . . . . 1 . 2 Impale 11 | . . . . . . . . . . . . . . 2 1 . . . . . 3 4 1 Melee Attacks 472 | . 9 . . 4 7 7 . 37 32 5 12 . 8 75 6 6 5 10 3 . 101 92 53 Impact 35 | . . . . . . . . 14 12 . . . 2 7 . . . . . . . . . Slashing 256 | . 9 . . 4 7 7 . 23 20 5 12 . 6 14 . . . . . . 56 49 44 Piercing 181 | . . . . . . . . . . . . . . 54 6 6 5 10 3 . 45 43 9 Sneak Attacks 56 | . . . . 1 4 3 . 15 1 . 2 . 1 14 . . . . . . 7 7 1 Combat Hostiles 1 | . . . . . . . . . . . . . . . . . . . . . . . 1 Follow-up Attacks 18 | . . . . . . . . 6 1 . . . . . . . . . . . 3 6 2 Damage Inflicted 23980 | 103 494 224 . 47 3374 2415 451 1483 1119 63 413 . 604 1785 311 402 886 818 . 1764 2732 3219 1273 Guns 1696 | 103 458 28 . . 1047 . . . . . . . . . . . . . . . . . 60 Cannons 4507 | . . . . . 1996 2022 451 . . . . . . . . . . . . . 38 . . Explosions 6245 | . . 191 . . 6 167 . . 679 63 . . 332 . 210 402 886 555 . 1764 378 454 158 Melee 11479 | . . . . 47 313 226 . 1483 440 . 413 . 272 1785 101 . . 263 . . 2316 2765 1055 Ramming 53 | . 36 5 . . 12 . . . . . . . . . . . . . . . . . . Kinetic 5886 | 103 458 28 . . 2764 2022 451 . . . . . . . . . . . . . . . 60 Thermal 718 | . . . . . 279 . . . 364 . . . . . . . . . . . 38 37 . Explosive 5566 | . . 191 . . . 167 . . 315 63 . . 332 . 210 402 886 555 . 1764 378 303 . Electromagnetic 278 | . . . . . 6 . . . . . . . . . . . . . . . . 114 158 Impact 483 | . . . . . . . . 409 74 . . . . . . . . . . . . . . Slashing 7180 | . . . . 47 313 226 . 1074 366 . 413 . 272 543 . . . . . . 1673 1305 948 Piercing 3816 | . . . . . . . . . . . . . . 1242 101 . . 263 . . 643 1460 107 Highest Corruption 16 | . . . . . . . 1 4 3 3 4 4 4 6 6 . 2 2 . 9 14 16 16 Average Corruption 6 | . . . . . . . 1 4 2 3 3 4 4 4 3 . 2 2 . 9 11 8 16 Corruption Purged 6 | . . . . . . . . . . . . . . . 6 . . . . . . . . Corruption Blocked . | . . . . . . . . . . . . . . . . . . . . . . . . Effects 229 | . . . . . . . 8 . 4 14 8 . 17 27 1 . . 7 . 3 59 43 38 Message Errors 53 | . . . . . . . 1 . 1 1 3 . 5 9 . . . 2 . . 12 13 6 Matter Fused 49 | . . . . . . . 3 . . 5 2 . 3 1 . . . . . . 8 15 12 Heat Flow Errors 24 | . . . . . . . 2 . . 2 . . 1 3 1 . . . . 1 8 5 1 Energy Discharges 31 | . . . . . . . 1 . . . 2 . 5 7 . . . 1 . . 10 2 3 Parts Rejected 4 | . . . . . . . . . 1 . . . . 1 . . . . . . 1 1 . Parts Fused 4 | . . . . . . . . . . . . . 1 . . . . . . . 3 . . Data Loss (minor) 28 | . . . . . . . 1 . 2 3 . . 1 3 . . . 1 . 1 5 5 6 Data Loss (major) 14 | . . . . . . . . . . 1 . . 1 3 . . . . . . 4 2 3 Misfires 5 | . . . . . . . . . . . 1 . . . . . . 1 . . 3 . . Alerts 6 | . . . . . . . . . . 2 . . . . . . . 1 . . 2 . 1 Misdirections 8 | . . . . . . . . . . . . . . . . . . . . . 3 . 5 Weapon Failures 3 | . . . . . . . . . . . . . . . . . . 1 . 1 . . 1 Overload Shots . | . . . . . . . . . . . . . . . . . . . . . . . . Overflow Damage 2065 | . . . . . 11 52 73 224 188 . 126 . 5 215 . 77 8 15 . . 462 594 15 Projectiles 97 | . . . . . 11 13 73 . . . . . . . . . . . . . . . . Explosions 306 | . . . . . . 39 . . 149 . . . 5 . . 77 8 13 . . 7 . 8 Melee 1662 | . . . . . . . . 224 39 . 126 . . 215 . . . 2 . . 455 594 7 Knockbacks 29 | . 1 . . . 16 10 1 1 . . . . . . . . . . . . . . . Impact 2 | . 1 . . . . . . 1 . . . . . . . . . . . . . . . Kinetic 24 | . . . . . 14 9 1 . . . . . . . . . . . . . . . . Secondary 3 | . . . . . 2 1 . . . . . . . . . . . . . . . . . Self-Inflicted Damage 309 | . . 35 . . . . . . . . . . 31 . . . . . . . 10 . 233 Shots 10 | . . 1 . . . . . . . . . . 1 . . . . . . . 1 . 7 Rammed 7 | . 4 2 . . 1 . . . . . . . . . . . . . . . . . . Targets Rammed 8 | . 4 2 . . 2 . . . . . . . . . . . . . . . . . . Kicked . | . . . . . . . . . . . . . . . . . . . . . . . . Crushed 1 | . . . . . 1 . . . . . . . . . . . . . . . . . . Highest Temperature 350 | . . 8 . . 350 126 175 11 238 194 32 . 120 292 125 26 32 102 44 103 272 269 225 Average Temperature 71 | . . 3 . . 85 43 49 6 60 59 17 . 54 123 44 13 25 40 25 48 76 49 93 Received Heat Transfer 2721 | . 42 . . 20 711 477 63 93 . 42 76 . 12 27 . . 27 27 9 . 219 72 804 Effects 4 | . . . . . 3 . . . . . . . . . . . . . . . 1 . . Energy Bleed 4 | . . . . . 3 . . . . . . . . . . . . . . . 1 . . Siege Activations . | . . . . . . . . . . . . . . . . . . . . . . . . Martial Activations . | . . . . . . . . . . . . . . . . . . . . . . . . Shielding Activations . | . . . . . . . . . . . . . . . . . . . . . . . . Robots Disrupted . | . . . . . . . . . . . . . . . . . . . . . . . . Combat Hostiles . | . . . . . . . . . . . . . . . . . . . . . . . . Robots Corrupted 1 | . . . . . . . . 1 . . . . . . . . . . . . . . . Combat Hostiles . | . . . . . . . . . . . . . . . . . . . . . . . . Parts Fried 7 | . . . . . . . . 3 . . . . . 1 1 . . . . . . . 2 Impact Corruptions 7 | . . . . . . . . 6 1 . . . . . . . . . . . . . . Robots Melted . | . . . . . . . . . . . . . . . . . . . . . . . . Combat Hostiles . | . . . . . . . . . . . . . . . . . . . . . . . . Parts Melted 5 | . . . . . 2 . . . . . . . . . . . 1 1 . . 1 . . Heat Transferred 842 | . . . . . 592 . . . 200 . . . . . . . . . . . . 50 . Parts Sabotaged . | . . . . . . . . . . . . . . . . . . . . . . . . Parts Stolen . | . . . . . . . . . . . . . . . . . . . . . . . . Parts Stripped . | . . . . . . . . . . . . . . . . . . . . . . . . Power Chain Reactions 2 | . . . . . . . . . . . . . . . . . . . . . . 2 . Alert | -11 -10 -10 -10 -9 -8 -8 -8 -8 -6 -6 -6 -6 -5 -5 -5 -5 -5 -4 -4 -4 -4 -3 -3 ------- Run | Yrd Mat Min Exi Min Mat Sto Rec Scr Fac Low Low Dat Pro Fac Upp Upp War Pro Fac Was Fac Res Arm Maximum Alert Level 2 | . . . . . 2 2 1 . 1 . . . . . . . . . . . 2 2 1 Low Security (%) 71 | 100 100 100 . 100 62 2 96 . 83 . . . . 100 . . . . 100 100 76 60 . Level 1 23 | . . . . . 20 91 3 . 16 . . . . . . . . . . . 12 35 100 Level 2 4 | . . . . . 16 5 . . . . . . . . . . . . . . 10 4 . Level 3 . | . . . . . . . . . . . . . . . . . . . . . . . . Level 4 . | . . . . . . . . . . . . . . . . . . . . . . . . Level 5 . | . . . . . . . . . . . . . . . . . . . . . . . . High Security . | . . . . . . . . . . . . . . . . . . . . . . . . Max Security . | . . . . . . . . . . . . . . . . . . . . . . . . Peak Influence 557 | 20 70 110 . 5 557 413 218 . 242 . . . . 96 . . . . 15 80 475 477 384 Initial 249 | . . 3 . . . 231 142 . . . . . . 96 . . . . . 1 42 241 249 Average 125 | 2 11 27 . . 169 318 132 . 48 . . . . 23 . . . . 1 31 155 166 322 Influence Increases 7339 | 20 245 142 . 6 1080 853 359 . 377 125 75 . 440 445 95 135 360 110 21 90 933 905 523 Destroy 0b10 Robot/C 3140 | . 120 80 . . 680 440 100 . 120 20 40 . 340 160 80 80 120 40 . . 300 300 120 Destroy 0b10 Robot/NC 330 | 20 15 . . 5 70 40 5 . 5 . 5 . 10 60 . . . 10 . . 40 40 5 Destroy Leader 638 | . 24 10 . . 182 148 . . 30 . . . 30 46 . 10 . . . . 56 62 40 Allied During Kill 103 | . . . . . . 1 10 . . . 15 . 60 13 . . . . . . . . 4 Successful Hack 235 | . 22 . . . 19 23 16 . . . . . . 12 . . . . . . 27 92 24 Select Force Hacks 270 | . 60 . . . . . 210 . . . . . . . . . . . . . . . . Disable Machine 420 | . . . . . 45 60 15 . 75 . . . . . . . . . . . 60 30 135 Destroy Structure 688 | . 4 22 . 1 54 66 3 . 72 . . . . 94 . . . . 6 90 150 96 30 Partial Spotted 285 | . . . . . . . . . . . . . . 15 . . . . . . 105 90 75 Lose Combat Pursuer 1230 | . . 30 . . 30 75 . . 75 105 15 . . 45 15 45 240 60 15 . 195 195 90 Influence Decreases 7131 | 20 237 104 46 6 532 1035 658 67 146 341 90 . 286 527 157 145 140 330 16 35 532 889 792 Entered New Map 1527 | . . 5 46 . . 317 224 67 . 87 4 . . 58 27 2 . 220 . 4 18 220 228 Time Decay 4857 | 20 237 99 . 6 522 498 434 . 146 254 86 . 216 412 110 143 140 110 16 31 454 589 334 Lost Part 370 | . . . . . 10 20 . . . . . . 10 20 . . . . . . 60 80 170 Lost Ally 227 | . . . . . . 50 . . . . . . 60 37 20 . . . . . . . 60 Purge Threat 150 | . . . . . . 150 . . . . . . . . . . . . . . . . . Squads Dispatched 44 | . 5 . . . 5 2 . . 2 . . . . 6 . . . . 1 . 5 8 10 Investigation 10 | . 4 . . . 2 . . . . . . . . . . . . . . . 1 1 2 Extermination 14 | . . . . . . . . . 1 . . . . 3 . . . . . . 3 5 2 Reinforcement 15 | . 1 . . . 2 2 . . 1 . . . . 3 . . . . 1 . 1 2 2 Assault 5 | . . . . . 1 . . . . . . . . . . . . . . . . . 4 Garrison . | . . . . . . . . . . . . . . . . . . . . . . . . Intercept . | . . . . . . . . . . . . . . . . . . . . . . . . Searches Triggered . | . . . . . . . . . . . . . . . . . . . . . . . . Construction Impeded 2 | . . . . . 1 . . . . . . . . . . . . . . . . 1 . Haulers Reinforced 1 | . . . . . . . . . . . . . . 1 . . . . . . . . . Active Scanning Responses . | . . . . . . . . . . . . . . . . . . . . . . . . Cargo Convoy Interrupts 1 | . . . . . . . . . . . . . . . . . . . . . 1 . . Stealth | -11 -10 -10 -10 -9 -8 -8 -8 -8 -6 -6 -6 -6 -5 -5 -5 -5 -5 -4 -4 -4 -4 -3 -3 --------- Run | Yrd Mat Min Exi Min Mat Sto Rec Scr Fac Low Low Dat Pro Fac Upp Upp War Pro Fac Was Fac Res Arm Distress Signals 19 | . 1 . . . 8 3 . . 1 . . . . . . . 2 . . . 3 . 1 Communications Jammed 21 | . . . . . . . . . . . . . . . . . . . . . 14 . 7 Distress Signals 17 | . . . . . . . . . . . . . . . . . . . . . 14 . 3 Times Spotted 445 | . 13 6 . 14 51 31 5 41 11 7 4 . 8 24 6 3 93 8 3 5 44 36 32 Peak Tracking Total 21 | . 3 3 . 21 6 7 2 16 4 5 2 . 5 4 5 3 18 3 2 6 9 7 17 Tactical Retreats 56 | . . 1 . 1 2 2 . . 3 5 1 . . 3 1 2 5 2 1 1 13 9 4 ECM-based Alert Blocks 9 | . . . . . . . . . . . . . . . . . . . . . 5 4 . Traps | -11 -10 -10 -10 -9 -8 -8 -8 -8 -6 -6 -6 -6 -5 -5 -5 -5 -5 -4 -4 -4 -4 -3 -3 ------- Run | Yrd Mat Min Exi Min Mat Sto Rec Scr Fac Low Low Dat Pro Fac Upp Upp War Pro Fac Was Fac Res Arm Traps Triggered 18 | . 3 . . . 1 1 . . 2 . . . . 1 . . . . 1 . 2 . 7 Indirectly 1 | . . . . . . . . . . . . . . . . . . . . . . . 1 Trap Hack Attempts . | . . . . . . . . . . . . . . . . . . . . . . . . Triggered . | . . . . . . . . . . . . . . . . . . . . . . . . Disarmed . | . . . . . . . . . . . . . . . . . . . . . . . . Reprogrammed . | . . . . . . . . . . . . . . . . . . . . . . . . Reused 1 | . . . . . . . . 1 . . . . . . . . . . . . . . . Traps Extracted . | . . . . . . . . . . . . . . . . . . . . . . . . Installed 2 | . . . . . . . . 1 . . . . . . . . . . . . . . 1 Triggered . | . . . . . . . . . . . . . . . . . . . . . . . . Most Traps Carried 3 | . . . . . . . . 3 2 2 2 2 2 2 2 2 2 2 2 2 2 2 2 Machines | -11 -10 -10 -10 -9 -8 -8 -8 -8 -6 -6 -6 -6 -5 -5 -5 -5 -5 -4 -4 -4 -4 -3 -3 ---------- Run | Yrd Mat Min Exi Min Mat Sto Rec Scr Fac Low Low Dat Pro Fac Upp Upp War Pro Fac Was Fac Res Arm Machines Disabled 37 | . . 1 . . 3 4 1 7 5 . . . . . . . . . . . 4 2 10 Max in Single Turn 5 | . . 1 . . 2 2 1 1 5 . . . . . . . . . . . 1 1 1 Garrison Access 4 | . . . . . 1 1 . . 1 . . . . . . . . . . . 1 . . Machines Repaired . | . . . . . . . . . . . . . . . . . . . . . . . . Machines Dismantled . | . . . . . . . . . . . . . . . . . . . . . . . . Machines Sabotaged . | . . . . . . . . . . . . . . . . . . . . . . . . Overloaded Fab Kills . | . . . . . . . . . . . . . . . . . . . . . . . . Hacking | -11 -10 -10 -10 -9 -8 -8 -8 -8 -6 -6 -6 -6 -5 -5 -5 -5 -5 -4 -4 -4 -4 -3 -3 --------- Run | Yrd Mat Min Exi Min Mat Sto Rec Scr Fac Low Low Dat Pro Fac Upp Upp War Pro Fac Was Fac Res Arm Machines Accessed 93 | . 6 1 1 . 14 9 12 3 4 . 1 4 . 8 2 1 2 . . . 13 11 1 Terminals 44 | . 4 . . . 10 8 5 . 2 . . . . 4 . . . . . . 4 7 . Fabricators 6 | . . . . . . . . . . . . . . 2 . . . . . . 2 2 . Repair Stations 4 | . . . . . 1 . . . . . . . . . . . . . . . 2 . 1 Recycling Units 12 | . 2 . . . . . 7 . 1 . . . . . . . . . . . 1 1 . Scanalyzers 7 | . . . . . 2 . . . . . . . . 2 . . . . . . 2 1 . Garrison Access 5 | . . . . . 1 1 . . 1 . . . . . . . . . . . 2 . . Total Hacks 251 | . 15 1 1 . 34 29 25 25 7 . 1 27 . 18 7 1 5 . . . 31 21 3 Successful 161 | . 8 1 1 . 16 15 18 25 2 . 1 27 . 7 7 1 5 . . . 13 12 2 Failed 90 | . 7 . . . 18 14 7 . 5 . . . . 11 . . . . . . 18 9 1 Catastrophic 22 | . 1 . . . 9 4 . . 1 . . . . 3 . . . . . . 2 2 . Database Lockouts . | . . . . . . . . . . . . . . . . . . . . . . . . Manual 103 | . 15 . . . 19 17 23 . 3 . . . . 10 . . 1 . . . 10 5 . Terminals 111 | . 12 . . . 23 25 17 . 3 . . . . 10 . . . . . . 8 13 . Fabricators 18 | . . . . . . . . . . . . . . 4 . . . . . . 10 4 . Repair Stations 12 | . . . . . 4 . . . . . . . . . . . . . . . 5 . 3 Recycling Units 17 | . 3 . . . . . 8 . 2 . . . . . . . . . . . 2 2 . Scanalyzers 15 | . . . . . 6 . . . . . . . . 4 . . . . . . 3 2 . Garrison Access 10 | . . . . . 1 4 . . 2 . . . . . . . . . . . 3 . . Terminal Hacks 91 | . 2 1 1 . 3 8 4 25 . . 1 27 . 1 7 1 5 . . . 1 4 . Record 42 | . . . 1 . . . . 24 . . . 11 . . 6 . . . . . . . . Part Schematic 11 | . . . . . . . 1 . . . . 8 . . . . . . . . 1 1 . Robot Schematic 6 | . . . . . . 1 . . . . . 5 . . . . . . . . . . . Robot Analysis 4 | . 1 . . . 1 2 . . . . . . . . . . . . . . . . . Prototype ID Bank 7 | . . . . . . . . . . . . 3 . . . . 4 . . . . . . Open Door 8 | . . 1 . . . 3 . . . . 1 . . . 1 1 1 . . . . . . Level Access Points 1 | . . . . . . . . . . . . . . . . . . . . . . 1 . Branch Access Points 3 | . 1 . . . 1 . . . . . . . . . . . . . . . . 1 . Alert Level 1 | . . . . . . . 1 . . . . . . . . . . . . . . . . Unreport Threat 1 | . . . . . . 1 . . . . . . . . . . . . . . . . . Dispatch Records 1 | . . . . . . . 1 . . . . . . . . . . . . . . . . Hauler Manifests 3 | . . . . . 1 . 1 . . . . . . . . . . . . . . 1 . Zone Layout 2 | . . . . . . 1 . . . . . . . 1 . . . . . . . . . Proto ID Catalog 1 | . . . . . . . . 1 . . . . . . . . . . . . . . . Fabricator Hacks 11 | . . . . . . . . . . . . . . 3 . . . . . . 5 3 . Network Status 4 | . . . . . . . . . . . . . . 1 . . . . . . 1 2 . Load Schematic 3 | . . . . . . . . . . . . . . 1 . . . . . . 2 . . Build 4 | . . . . . . . . . . . . . . 1 . . . . . . 2 1 . Repair Station Hacks 8 | . . . . . 4 . . . . . . . . . . . . . . . 2 . 2 Scan Component 5 | . . . . . 2 . . . . . . . . . . . . . . . 2 . 1 Repair 3 | . . . . . 2 . . . . . . . . . . . . . . . . . 1 Recycling Unit Hacks 2 | . . . . . . . . . 1 . . . . . . . . . . . . 1 . Retrieve Components 2 | . . . . . . . . . 1 . . . . . . . . . . . . 1 . Scanalyzer 10 | . . . . . 3 . . . . . . . . 2 . . . . . . 3 2 . Insert Component 1 | . . . . . 1 . . . . . . . . . . . . . . . . . . Analyze 1 | . . . . . 1 . . . . . . . . . . . . . . . . . . Retrieve Study 8 | . . . . . 1 . . . . . . . . 2 . . . . . . 3 2 . Garrison Access Hacks 4 | . . . . . 1 1 . . 1 . . . . . . . . . . . 1 . . Seal Access 4 | . . . . . 1 1 . . 1 . . . . . . . . . . . 1 . . Unauthorized Hacks 35 | . 6 . . . 5 6 14 . . . . . . 1 . . . . . . 1 2 . Terminals 25 | . 4 . . . 5 6 7 . . . . . . 1 . . . . . . . 2 . Assimilate 1 | . . . . . . . . . . . . . . 1 . . . . . . . . . Botnet 6 | . . . . . . 2 2 . . . . . . . . . . . . . . 2 . Skim 18 | . 4 . . . 5 4 5 . . . . . . . . . . . . . . . . Fabricators 1 | . . . . . . . . . . . . . . . . . . . . . 1 . . Prioritize 1 | . . . . . . . . . . . . . . . . . . . . . 1 . . Repair Stations . | . . . . . . . . . . . . . . . . . . . . . . . . Recycling Units 9 | . 2 . . . . . 7 . . . . . . . . . . . . . . . . Tunnel 9 | . 2 . . . . . 7 . . . . . . . . . . . . . . . . Scanalyzers . | . . . . . . . . . . . . . . . . . . . . . . . . Garrison Access . | . . . . . . . . . . . . . . . . . . . . . . . . Data Cores Recovered . | . . . . . . . . . . . . . . . . . . . . . . . . Used . | . . . . . . . . . . . . . . . . . . . . . . . . Hacking Detections 56 | . 4 . . . 12 7 6 . 2 . . . . 7 . . . . . . 10 7 1 Full Trace Events 2 | . . . . . 1 . . . . . . . . . . . . . . . 1 . . Feedback Events . | . . . . . . . . . . . . . . . . . . . . . . . . Feedback Blocked . | . . . . . . . . . . . . . . . . . . . . . . . . Robot Schematics Acquired 6 | . . . . . . 1 . . . . . 5 . . . . . . . . . . . Robots Built . | . . . . . . . . . . . . . . . . . . . . . . . . Authchips . | . . . . . . . . . . . . . . . . . . . . . . . . Time . | . . . . . . . . . . . . . . . . . . . . . . . . Total Robot Build Rating . | . . . . . . . . . . . . . . . . . . . . . . . . Part Schematics Acquired 55 | . . . . . . . 1 . 9 4 3 8 2 10 . . 12 . 1 . 4 1 . Parts Built 6 | . . . . . . . . . . . . . . 1 . . . . . . 3 2 . Authchips 3 | . . . . . . . . . . . . . . 1 . . . . . . 2 . . Time 237 | . . . . . . . . . . . . . . 84 . . . . . . 84 69 . Total Part Build Rating 38 | . . . . . . . . . . . . . . 6 . . . . . . 14 18 . Part Studies Acquired 8 | . . . . . 1 . . . . . . . . 2 . . . . . . 3 2 . Parts Repaired 3 | . . . . . 2 . . . . . . . . . . . . . . . . . 1 Time 218 | . . . . . 174 . . . . . . . . . . . . . . . . . 44 Parts Recycled . | . . . . . . . . . . . . . . . . . . . . . . . . Recycled Matter . | . . . . . . . . . . . . . . . . . . . . . . . . Retrieved Matter . | . . . . . . . . . . . . . . . . . . . . . . . . Retrieved Components 4 | . . . . . . . . . 2 . . . . . . . . . . . . 2 . Parts Scanalyzed 1 | . . . . . 1 . . . . . . . . . . . . . . . . . . Part Schematics Acquired . | . . . . . . . . . . . . . . . . . . . . . . . . Parts Damaged 1 | . . . . . 1 . . . . . . . . . . . . . . . . . . Bothacking | -11 -10 -10 -10 -9 -8 -8 -8 -8 -6 -6 -6 -6 -5 -5 -5 -5 -5 -4 -4 -4 -4 -3 -3 ------------ Run | Yrd Mat Min Exi Min Mat Sto Rec Scr Fac Low Low Dat Pro Fac Upp Upp War Pro Fac Was Fac Res Arm Used RIF Installer . | . . . . . . . . . . . . . . . . . . . . . . . . Robots Hacked 5 | . . . . . . . . . . . . . . 1 . . . . . . . 2 2 Non-combat . | . . . . . . . . . . . . . . . . . . . . . . . . Combat . | . . . . . . . . . . . . . . . . . . . . . . . . Robot Hacks Applied . | . . . . . . . . . . . . . . . . . . . . . . . . Manual 5 | . . . . . . . . . . . . . . 1 . . . . . . . 2 2 Relay Couplers Released . | . . . . . . . . . . . . . . . . . . . . . . . . Fabnet Peak Effective % . | . . . . . . . . . . . . . . . . . . . . . . . . Robots Rewired 19 | . . . . . . . 12 . . . 4 . . . . . . . . . . . 3 Allies Hacked 2 | . . . . . . . . . . . . . . 2 . . . . . . . . . Hacks Repelled . | . . . . . . . . . . . . . . . . . . . . . . . . Allies | -11 -10 -10 -10 -9 -8 -8 -8 -8 -6 -6 -6 -6 -5 -5 -5 -5 -5 -4 -4 -4 -4 -3 -3 -------- Run | Yrd Mat Min Exi Min Mat Sto Rec Scr Fac Low Low Dat Pro Fac Upp Upp War Pro Fac Was Fac Res Arm Total Allies 41 | . . . . . . . 12 6 . . 4 . 1 10 5 . . . . . . . 3 Largest Group 15 | . . . . . . . 12 15 . . 4 4 4 1 1 . . . . . . . 3 Highest-Rated Group 477 | . . . . . . . 247 477 . . 116 116 116 85 54 . . . . . . . 144 Highest-Rated Ally 85 | . . . . . . . 34 66 . . 29 29 85 85 54 . . . . . . . 48 Initial UFD Resources 35 | . . . . . . . . . 24 24 24 24 28 28 28 28 28 32 32 32 32 35 35 Total Orders 22 | . . . . . . . 5 7 . . 6 . 1 2 1 . . . . . . . . STAY 11 | . . . . . . . 3 3 . . 4 . 1 . . . . . . . . . . FOLLOW 3 | . . . . . . . 2 1 . . . . . . . . . . . . . . . AID 3 | . . . . . . . . 3 . . . . . . . . . . . . . . . EXPLORE 1 | . . . . . . . . . . . 1 . . . . . . . . . . . . RETURN 4 | . . . . . . . . . . . 1 . . 2 1 . . . . . . . . Ally Attacks 288 | . . . . . . . . 161 . . 17 . 36 52 17 . . . . . . . 5 Total Damage 5111 | . . . . . . . . 2947 . . 189 . 646 1019 228 . . . . . . . 82 Kills 55 | . . . . . . . . 37 . . 2 . 12 4 . . . . . . . . . Allies Corrupted 1 | . . . . . . . . 1 . . . . . . . . . . . . . . . Allies Melted 2 | . . . . . . . . 1 . . . . . . 1 . . . . . . . . Intel | -11 -10 -10 -10 -9 -8 -8 -8 -8 -6 -6 -6 -6 -5 -5 -5 -5 -5 -4 -4 -4 -4 -3 -3 ------- Run | Yrd Mat Min Exi Min Mat Sto Rec Scr Fac Low Low Dat Pro Fac Upp Upp War Pro Fac Was Fac Res Arm Active Infowar (turns) 15211 | 41 2215 669 280 343 1221 . . 2 771 558 810 69 587 1440 359 514 308 775 195 80 1406 1846 722 Sensors 6728 | . . 1 . . . . . 1 771 558 753 69 267 426 74 514 303 590 195 80 858 612 656 IFF 8829 | . . . . . . . . . 542 558 810 69 587 1439 359 514 307 775 195 80 1406 1188 . Structural 1913 | . . . . . . . . 1 . . . . . . . . . . . . . 1821 91 Seismic 5926 | 41 2215 668 280 343 1221 . . . . . . . . . . . . . . . . 1158 . Jamming 2590 | . . . . . . . . . . . . . . . . . 1 . . . 765 1194 630 ECM 284 | . . . . . . . . . . . . . . . . . . . . . 223 61 . Robot Analysis Total 4 | . 1 . . . 1 2 . . . . . . . . . . . . . . . . . Derelict Logs Recovered 12 | . . 3 . . . . . . . 3 1 . 2 . . 2 . 1 . . . . . Drone Launches 28 | . . . . . . 18 . 2 . . 3 . 1 3 1 . . . . . . . . Drone Recoveries 11 | . . . . . . 4 . . . . 3 . . 3 1 . . . . . . . . Exploration | -11 -10 -10 -10 -9 -8 -8 -8 -8 -6 -6 -6 -6 -5 -5 -5 -5 -5 -4 -4 -4 -4 -3 -3 ------------- Run | Yrd Mat Min Exi Min Mat Sto Rec Scr Fac Low Low Dat Pro Fac Upp Upp War Pro Fac Was Fac Res Arm Turns Passed 23681 | 128 2215 672 280 343 2083 1325 1071 4205 812 558 810 69 587 1440 359 514 1153 775 195 80 1406 1846 755 Spaces Moved 21038 | 62 655 388 176 174 917 785 670 3319 1012 799 982 85 714 1677 455 785 1119 1296 167 126 2127 1825 723 Core 5 | 5 . . . . . . . . . . . . . . . . . . . . . . . Treads 1823 | 57 655 388 176 174 337 24 12 . . . . . . . . . . . . . . . . Legs . | . . . . . . . . . . . . . . . . . . . . . . . . Wheels 2812 | . . . . . 580 761 658 813 . . . . . . . . . . . . . . . Hover 16398 | . . . . . . . . 2506 1012 799 982 85 714 1677 455 785 1119 1296 167 126 2127 1825 723 Flight . | . . . . . . . . . . . . . . . . . . . . . . . . Fastest Speed 39 | 50 160 160 160 160 115 115 130 71 61 61 61 61 61 61 61 61 46 46 110 43 39 39 41 Average Speed 82 | 151 160 160 160 160 145 133 131 109 61 61 62 61 65 65 61 61 54 46 110 43 43 75 43 Slowest Speed 280 | 160 160 160 160 160 280 250 240 144 129 61 141 61 68 68 61 61 61 46 110 43 134 134 160 Overloaded Moves . | . . . . . . . . . . . . . . . . . . . . . . . . Propulsion Burnouts . | . . . . . . . . . . . . . . . . . . . . . . . . Robots Hopped . | . . . . . . . . . . . . . . . . . . . . . . . . Potential Cave-ins 6 | . . . . . . . . . . . . . . . . . . 2 . . . . 4 Cave-ins Triggered . | . . . . . . . . . . . . . . . . . . . . . . . . Exploration Rate (%) 65 | 3 92 87 49 34 92 94 98 90 29 77 93 70 84 38 65 86 79 97 6 74 49 52 45 Regions Visited 23 Branch Regions 15 Pre-discovered Areas 23 | . 2 1 1 . 2 . 8 6 . 1 . 1 . . . . . 1 . . . . . Known Exits Taken 15 | . 1 . 1 . 1 . 1 1 1 1 1 . 1 1 1 1 . 1 . . 1 1 . Unknown Exits Taken 6 | 1 . 1 . 1 . 1 . . . . . 1 . . . . 1 . . . . . . Scrap Searched 24 | . . 1 . . . . . 4 . 6 3 . 3 . 1 3 . 3 . . . . . Spaces Dug 344 | . 4 7 . 1 6 4 . 4 22 28 4 . 14 41 6 32 6 31 3 . 70 43 18 Terrain Destroyed 747 | . 4 27 . 1 49 67 3 4 74 28 5 . 39 41 25 45 32 69 3 74 79 51 27 Melee 188 | . 4 . . 1 1 1 . 4 16 3 3 . 1 41 4 6 5 5 2 . 46 31 14 Projectile 165 | . . . . . 48 40 3 . 6 9 2 . 1 . 2 3 1 5 1 . 21 10 13 AOE 394 | . . 27 . . . 26 . . 52 16 . . 37 . 19 36 26 59 . 74 12 10 . Terrain Rammed . | . . . . . . . . . . . . . . . . . . . . . . . . Walls Destroyed . | . . . . . . . . . . . . . . . . . . . . . . . . Machines Disabled . | . . . . . . . . . . . . . . . . . . . . . . . . Actions | -11 -10 -10 -10 -9 -8 -8 -8 -8 -6 -6 -6 -6 -5 -5 -5 -5 -5 -4 -4 -4 -4 -3 -3 --------- Run | Yrd Mat Min Exi Min Mat Sto Rec Scr Fac Low Low Dat Pro Fac Upp Upp War Pro Fac Was Fac Res Arm Total 26033 | 81 1749 425 175 230 1446 931 838 3847 1153 851 1158 101 813 1905 521 804 1655 1443 174 138 2399 2146 1050 Wait 3412 | . 1030 12 . 51 339 33 26 407 57 31 136 17 77 112 47 . 470 121 . . 122 156 168 Move 21017 | 61 655 387 175 173 916 784 669 3318 1011 798 981 84 713 1676 454 784 1118 1295 167 125 2126 1824 723 Hop . | . . . . . . . . . . . . . . . . . . . . . . . . Pick Up 127 | 7 13 2 . . 11 6 4 31 9 2 . . 1 5 . 4 7 . . 1 5 15 4 Fast Attach 92 | 7 . 2 . . 11 8 . 6 8 . . . 1 14 . . 14 . . . 7 11 3 Attach 66 | . . . . . 4 2 2 5 5 1 . . 2 4 3 1 2 . 2 . 6 16 11 Detach 42 | . . . . . 5 1 . 1 2 . . . 1 1 2 1 4 . 1 . 2 12 9 Swap 127 | . 5 4 . 2 15 5 1 8 13 2 5 . 7 7 5 2 9 5 . 3 11 1 17 Drop 168 | . 7 6 . . 21 12 4 38 15 2 . . 1 14 1 1 21 . . . 7 12 6 Fire 388 | 6 27 10 . . 115 66 10 3 7 10 1 . 4 4 3 5 5 11 1 9 23 17 51 Melee 424 | . 9 . . 4 7 7 . 29 26 5 12 . 6 68 6 6 5 10 3 . 90 82 49 Ram . | . . . . . . . . . . . . . . . . . . . . . . . . Kick . | . . . . . . . . . . . . . . . . . . . . . . . . Crush 7 | . 3 2 . . 2 . . . . . . . . . . . . . . . . . . Escape Stasis 8 | . . . . . . . . . . . . . . . . . . . . . . . 8 Rewire 146 | . . . . . . . 122 . . . 23 . . . . . . 1 . . . . . Trap 2 | . . . . . . . . 1 . . . . . . . . . . . . . . 1 Miscellaneous 7 | . . . . . . 7 . . . . . . . . . . . . . . . . . Route ------- -11/Scrapyard -10/Materials (discovered 5 exits: [*Mat x3] / *Min / [*Sub]) -10/Mines (discovered 2 exits: [*Mat] / *Exi) -10/Exiles (discovered 2 exits: *Min x2) -9/Mines -8/Materials (discovered 4 exits: *Fac x3 / *Sto) -8/Storage (discovered 2 exits: *Fac / *Rec) -8/Recycling (discovered 2 exits: *Fac / *Scr) -8/Scraptown (discovered 2 exits: *Fac x2) -6/Factory (discovered 6 exits: *Fac x4 / *Low x2) -6/Lower Caves -6/Lower Caves (discovered 2 exits: *Fac / *Dat) -6/Data Miner -5/Proximity Caves -5/Factory (discovered 8 exits: *Fac x4 / *Upp x2 / Ext x2) -5/Upper Caves -5/Upper Caves (discovered 2 exits: *Fac / *War) -5/Warlord -4/Proximity Caves -4/Factory (discovered 2 exits: Res / *Upp) -4/Waste -4/Factory (discovered 2 exits: *Res x2) -3/Research (discovered 6 exits: *Res x3 / *Arm / Tes x2) -3/Armory History --------- Turn | Location | Event 4 | -11/Scrapyard | Discovered new exit (range 14) 129 | -11/Scrapyard | Entered Materials 317 | -10/Materials | Build established: Mutant 1199 | -10/Materials | Discovered new exit (range 16) 1417 | -10/Materials | Discovered new exit (range 9) 1481 | -10/Materials | Discovered new exit (range 3) 2185 | -10/Materials | Discovered new exit (range 3) 2294 | -10/Materials | Identified exit to Mines 2344 | -10/Materials | Entered Mines 2361 | -10/Mines | Met a Derelict bent on vengeance 2461 | -10/Mines | Learned location of Storage (-8) 2516 | -10/Mines | Deemed a non-threat by the Exiles lab entrance 2516 | -10/Mines | Discovered new exit (range 5) 2581 | -10/Mines | Learned Materials garrison access intel 2614 | -10/Mines | Met a Derelict who couldn't figure out how to use a Trap Extractor 2692 | -10/Mines | Discovered new exit (range 9) 2742 | -10/Mines | Found a damaged Exp. Sensor Array with a note attached 2746 | -10/Mines | Found Prototype Device 2746 | -10/Mines | Identified Exp. Sensor Array 3016 | -10/Mines | Entered Exiles 3017 | -10/Exiles | Identified exit to Mines 3056 | -10/Exiles | Met 8R-AWN 3079 | -10/Exiles | Met EX-HEX 3146 | -10/Exiles | Met EX-DEC 3152 | -10/Exiles | Learned location of Zion (-7) 3296 | -10/Exiles | Entered Mines 3593 | -9/Mines | Discovered new exit (range 10) 3604 | -9/Mines | Assembled infested the area 3639 | -9/Mines | Entered Materials 3639 | -8/Materials | Evolved 4 slots: Propulsion x2, Utility x2 3640 | -8/Materials | Loaded intel: 1 garrison access location 4192 | -8/Materials | Build established: Scavenger-Mutant 4276 | -8/Materials | Discovered new exit (range 16) 4440 | -8/Materials | Repaired Hvy. Armor Plating 4577 | -8/Materials | Repaired Broken Exp. Sensor Array 4651 | -8/Materials | Build established: Mutant 4966 | -8/Materials | Identified exit to Factory 5112 | -8/Materials | Learned Storage terminal intel 5138 | -8/Materials | Learned location of 3 exits from Factory 5218 | -8/Materials | Learned location of 3 exits from Factory 5557 | -8/Materials | Discovered exit to Factory (range 11) 5626 | -8/Materials | Identified exit to Storage 5639 | -8/Materials | First assault squad dispatched 5722 | -8/Materials | Entered Storage 5723 | -8/Storage | Loaded intel: 12 terminal locations 6272 | -8/Storage | Discovered exit to Factory (range 7) 6740 | -8/Storage | Lost 5 allies 7033 | -8/Storage | Used back door to open Recycling access 7033 | -8/Storage | Discovered new exit (range 3) 7047 | -8/Storage | Entered Recycling 7047 | -8/Recycling | Accompanied by 9 allies 7517 | -8/Recycling | Core integrity fell below 50% 7618 | -8/Recycling | Discovered new exit (range 7) 7638 | -8/Recycling | Build established: Commander-Mutant 7649 | -8/Recycling | Learned location of 2 exits from Lower Caves 7720 | -8/Recycling | Learned location of 2 exits from Factory 7835 | -8/Recycling | Learned Storage security intel 7880 | -8/Recycling | Learned location of 1 exit from Extension 7994 | -8/Recycling | Identified exit to Scraptown 8043 | -8/Recycling | Scanned before Scraplab entrance 8083 | -8/Recycling | Entered Scraplab 8118 | -8/Recycling | Entered Scraptown 8118 | -8/Scraptown | Accompanied by 21 allies 8118 | -8/Scraptown | System corruption cleaned by C-Scrubber 8119 | -8/Scraptown | Identified exit to Factory 8125 | -8/Scraptown | System corruption cleaned by C-Scrubber 8278 | -8/Scraptown | Heard Great Nut preacher, LISTEN AND RECITE! 8413 | -8/Scraptown | Visited Scrapoid Research Area 8440 | -8/Scraptown | Visited IN-MT5's Study 8568 | -8/Scraptown | Visited Fellowship of the Rings 8687 | -8/Scraptown | Visited Artisan Demo Area 8722 | -8/Scraptown | Visited UFD Registry 8722 | -8/Scraptown | Registered with UFD as "Matrixchassis" 8760 | -8/Scraptown | Visited Science Guys 8803 | -8/Scraptown | Visited Abandonware Association 8816 | -8/Scraptown | Learned abandonware demo "SHUTEYE.EXE" 8816 | -8/Scraptown | Learned abandonware demo "REVENGE.EXE" 8845 | -8/Scraptown | Visited Research Penetration Think Tank 8871 | -8/Scraptown | Visited Scrapoid Pod Storage 8888 | -8/Scraptown | Visited Analyses Database 8905 | -8/Scraptown | Visited Scrap Suit Storage 8920 | -8/Scraptown | Visited Cartography Club 8939 | -8/Scraptown | Visited Chapter 10 8960 | -8/Scraptown | Visited Derelict Rescue Squad 8995 | -8/Scraptown | Visited Curators Association 9189 | -8/Scraptown | Attached CPS modules to Grenadier 3b. 9201 | -8/Scraptown | Attached CPS modules to Grenadier 3a. 9941 | -8/Scraptown | Found Scrap Suit 10050 | -8/Scraptown | Found DRS Beacon 10822 | -8/Scraptown | Botcube activated 10842 | -8/Scraptown | Botcube completed mutation into treaded form, armed with 2 cannons. 10935 | -8/Scraptown | Found Deep Structural Scanner 10942 | -8/Scraptown | Learned location of Proximity Caves (-3) 10942 | -8/Scraptown | Learned 16 Materials zone layouts 10942 | -8/Scraptown | Learned 4 Access zone layouts 10942 | -8/Scraptown | Learned 4 Storage zone layouts 10942 | -8/Scraptown | Learned 8 Lower Caves zone layouts 10942 | -8/Scraptown | Learned 20 Lower Caves zone layouts 10942 | -8/Scraptown | Learned 24 Upper Caves zone layouts 10942 | -8/Scraptown | Learned 8 Proximity Caves zone layouts 10942 | -8/Scraptown | Learned 12 Proximity Caves zone layouts 10942 | -8/Scraptown | Learned Storage emergency access door positions 10942 | -8/Scraptown | Learned location of 1 exit from Factory 10942 | -8/Scraptown | Learned location of 3 exits from Factory 10942 | -8/Scraptown | Learned location of 3 exits from Upper Caves 11047 | -8/Scraptown | Murdered 4 allies 11126 | -8/Scraptown | Murdered 5 allies 11130 | -8/Scraptown | Found Scrapoid Pod 11194 | -8/Scraptown | Murdered 3 allies 11557 | -8/Scraptown | Scrapoid Pod released 08S06-D (x5) 11712 | -8/Scraptown | Warned about trapping Scraptown 11934 | -8/Scraptown | Met Optimus 11934 | -8/Scraptown | Accepted into 0bPrime 12086 | -8/Scraptown | Civil war broke out across Scraptown 12086 | -8/Scraptown | Attached CPS modules to N5-PS8(c). 12097 | -8/Scraptown | Found Master Drone Bay 12141 | -8/Scraptown | Found PL-3XN's Ring of Power 12197 | -8/Scraptown | Found Prototype Storage 12204 | -8/Scraptown | Lost 7 allies 12323 | -8/Scraptown | Entered Factory 12323 | -6/Factory | Evolved 4 slots: Propulsion x1, Utility x3 12324 | -6/Factory | Identified exit to Lower Caves 12325 | -6/Factory | Identified exit to Factory 12336 | -6/Factory | Lost 12 allies 12386 | -6/Factory | Identified Vmp. Humpback 12461 | -6/Factory | Tech Extrapolator generated special schematic: Deep Structural Scanner 12691 | -6/Factory | Build established: Mutant 13102 | -6/Factory | Tech Extrapolator generated special schematic: Energy Deflector 13135 | -6/Factory | Entered Lower Caves 13136 | -6/Lower Caves | Identified exit to Lower Caves 13137 | -6/Lower Caves | Attracted the attention of an 0b10 checkpoint 13204 | -6/Lower Caves | Learned Factory security intel 13222 | -6/Lower Caves | Encountered a Warlord checkpoint 13348 | -6/Lower Caves | Learned Factory emergency access door positions 13413 | -6/Lower Caves | Tech Extrapolator generated special schematic: Vmp. Humpback 13693 | -6/Lower Caves | Entered another Lower Caves area 13694 | -6/Lower Caves | Identified exit to Data Miner 13734 | -6/Lower Caves | Entered a destroyed Warlord outpost 13897 | -6/Lower Caves | Learned 4 Factory zone layouts 14238 | -6/Lower Caves | Attacked by a delusional Derelict stockpiling Unaware 14503 | -6/Lower Caves | Entered Data Miner 14503 | -6/Data Miner | Accompanied by 4 allies 14503 | -6/Data Miner | Discovered new exit (range 6) 14515 | -6/Data Miner | Met Data Miner 14533 | -6/Data Miner | Learned location of Section 7 (-2) 14533 | -6/Data Miner | Acquired the access code to Warlord's prototype stash 14539 | -6/Data Miner | Received God Mode back door access code from Data Miner 14572 | -6/Data Miner | Entered Proximity Caves 14572 | -5/Proximity Caves | Accompanied by 4 allies 14627 | -5/Proximity Caves | Build established: Commander-Gladiator 14843 | -5/Proximity Caves | Spotted B-75 Beast 14866 | -5/Proximity Caves | Master Drone dominated B-75 Beast. 14872 | -5/Proximity Caves | Learned Factory security intel 14993 | -5/Proximity Caves | Build established: Gladiator 15036 | -5/Proximity Caves | Learned location of 1 exit from Proximity Caves 15159 | -5/Proximity Caves | Entered Factory 15159 | -5/Factory | Accompanied by 1 ally 15159 | -5/Factory | Evolved 2 slots: Utility x1, Weapon x1 15160 | -5/Factory | Identified exit to Extension 15161 | -5/Factory | Identified exit to Upper Caves 15161 | -5/Factory | Identified exit to Factory 15179 | -5/Factory | Master Drone dominated G-50 Soldier. 15834 | -5/Factory | Master Drone dominated Y-64 Sentinel. 15885 | -5/Factory | Fabricated Cld. Gravmag System? 15887 | -5/Factory | Master Drone dominated G-50 Soldier. 15891 | -5/Factory | Master Drone dominated Y-64 Sentinel. 15994 | -5/Factory | Master Drone dominated P-70 Sage. 16024 | -5/Factory | Master Drone dominated P-70 Sage. 16056 | -5/Factory | Master Drone dominated G-50 Soldier. 16065 | -5/Factory | Master Drone dominated Sentinel 6b. 16095 | -5/Factory | Lost 3 allies 16115 | -5/Factory | Master Drone dominated Y-64 Sentinel. 16205 | -5/Factory | Master Drone dominated P-70 Sage. 16552 | -5/Factory | Master Drone dominated P-70 Sage. 16599 | -5/Factory | Entered Upper Caves 16599 | -5/Upper Caves | Accompanied by 1 ally 16600 | -5/Upper Caves | Identified exit to Upper Caves 16673 | -5/Upper Caves | Master Drone dominated S-27 Virus. 16710 | -5/Upper Caves | Entered an active Warlord outpost 16718 | -5/Upper Caves | Learned Factory trap positions 16718 | -5/Upper Caves | Learned Research trap positions 16718 | -5/Upper Caves | Learned Armory stockpile data 16718 | -5/Upper Caves | Learned Extension security intel 16749 | -5/Upper Caves | Master Drone dominated Y-64 Sentinel. 16783 | -5/Upper Caves | Build established: Mutant 16900 | -5/Upper Caves | Master Drone dominated L-41 Fighter. 16909 | -5/Upper Caves | Master Drone dominated G-50 Soldier. 16910 | -5/Upper Caves | Master Drone dominated G-50 Soldier. 16958 | -5/Upper Caves | Entered another Upper Caves area 16959 | -5/Upper Caves | Identified exit to Warlord 17073 | -5/Upper Caves | Encountered a Warlord checkpoint 17472 | -5/Upper Caves | Entered Warlord 17546 | -5/Warlord | Opened Warlord's prototype stash 17556 | -5/Warlord | Found Prototype Processor 17556 | -5/Warlord | Identified Exp. Armor Integrity Analyzer 17559 | -5/Warlord | Found Prototype Device 17559 | -5/Warlord | Identified Thermal Barrier 17571 | -5/Warlord | Found Prototype Reactor 17720 | -5/Warlord | Visited the Vortex Lab 17723 | -5/Warlord | Found Prototype Energy Gun 17723 | -5/Warlord | Identified Vortex Shotgun 17730 | -5/Warlord | Found Vortex Shotgun 17739 | -5/Warlord | Tech Extrapolator generated special schematic: Machine Rigger 17741 | -5/Warlord | Warlord's base attacked by MAIN.C 18060 | -5/Warlord | Lost 3 allies 18091 | -5/Warlord | Warlord forces counterattacked 18114 | -5/Warlord | Spotted B-86 Titan 18185 | -5/Warlord | Destroyed Executioner 18197 | -5/Warlord | Spotted Striker 18234 | -5/Warlord | Lost 10 allies 18335 | -5/Warlord | Lost 9 allies 18366 | -5/Warlord | Spotted Executioner 18370 | -5/Warlord | Tech Extrapolator generated special schematic: Heat Bomb Trap 18416 | -5/Warlord | Warlord base infiltrated, sounded retreat 18424 | -5/Warlord | Lost 9 allies 18447 | -5/Warlord | Attached CPS modules to Enhanced Demolisher. 18451 | -5/Warlord | Attached CPS modules to Enhanced Demolisher. 18467 | -5/Warlord | Found Prototype Processor 18467 | -5/Warlord | Identified Exp. Targeting Computer 18484 | -5/Warlord | Discovered new exit (range 14) 18498 | -5/Warlord | Spotted Striker 18540 | -5/Warlord | Rebuked by Warlord 18543 | -5/Warlord | Build established: Scavenger-Mutant 18570 | -5/Warlord | Spotted Striker 18577 | -5/Warlord | Spotted Executioner 18578 | -5/Warlord | Spotted Executioner 18580 | -5/Warlord | Spotted Striker 18608 | -5/Warlord | Found Corrupted Prototype Processor 18608 | -5/Warlord | Identified Exp. Core Analyzer 18625 | -5/Warlord | Entered Proximity Caves 18634 | -4/Proximity Caves | Lost 13 allies 18639 | -4/Proximity Caves | Attracted the attention of an 0b10 checkpoint 18680 | -4/Proximity Caves | Spotted B-86 Titan 19400 | -4/Proximity Caves | Entered Factory 19400 | -4/Factory | Evolved 2 slots: Power x1, Propulsion x1 19401 | -4/Factory | Identified exit to Upper Caves 19402 | -4/Factory | Identified exit to Research 19402 | -4/Factory | Identified Vortex Chain Reactor 19403 | -4/Factory | Loaded intel: 118 trap records 19595 | -4/Factory | Sucked down chute 19595 | -4/Factory | Entered Waste 19600 | -4/Waste | Spotted C-40 Crusher 19605 | -4/Waste | Spotted C-40 Crusher 19606 | -4/Waste | Spotted C-40 Crusher 19610 | -4/Waste | EMP discharged 19630 | -4/Waste | Spotted C-40 Crusher 19630 | -4/Waste | Spotted C-40 Crusher 19631 | -4/Waste | Spotted C-40 Crusher 19646 | -4/Waste | Destroyed C-40 Crusher 19650 | -4/Waste | Destroyed C-40 Crusher 19654 | -4/Waste | Destroyed C-40 Crusher 19668 | -4/Waste | Discovered new exit (range 11) 19672 | -4/Waste | Found Broken Gamma Bomb Array 19675 | -4/Waste | Entered Factory 19743 | -4/Factory | Tech Extrapolator generated special schematic: Vmp. Brace Plating 19978 | -4/Factory | Fabricated Greatsword? 20003 | -4/Factory | Tech Extrapolator generated special schematic: Vmp. Broadsword 20015 | -4/Factory | System corruption reached 10% 20127 | -4/Factory | Fabricated Vmp. Broadsword? 20301 | -4/Factory | Build established: Scavenger-Gladiator 20498 | -4/Factory | Discovered exit to Research (range 15) 20609 | -4/Factory | Spotted B-86 Titan 20969 | -4/Factory | Cargo convoy interrupted 21038 | -4/Factory | Discovered exit to Research (range 15) 21081 | -4/Factory | Entered Research 21081 | -3/Research | Evolved 2 slots: Utility x1, Weapon x1 21082 | -3/Research | Identified exit to Armory 21083 | -3/Research | Loaded intel: 90 trap records 21110 | -3/Research | Lost 3 parts (1n2u) 21144 | -3/Research | Identified exit to Research 21350 | -3/Research | Found Gamma Bomb Array 21399 | -3/Research | Fabricated Quantum Reactor? 22278 | -3/Research | System corruption reached 10% 22293 | -3/Research | Found Prototype Device 22293 | -3/Research | Identified Exp. Thermal Shield 22306 | -3/Research | Lost 3 parts (3u) 22548 | -3/Research | Identified exit to Testing 22887 | -3/Research | Build established: Scavenger-Scout 22927 | -3/Research | Entered Armory 22980 | -3/Armory | Repaired Cld. Gravmag System? 23312 | -3/Armory | Build established: Scavenger-Gladiator 23546 | -3/Armory | Spotted B-86 Titan 23559 | -3/Armory | Destroyed Armor Guard 23570 | -3/Armory | Spotted Armor Guard 23573 | -3/Armory | Spotted Armor Guard 23573 | -3/Armory | Spotted Armor Guard 23591 | -3/Armory | Destroyed Armor Guard 23602 | -3/Armory | Core integrity fell below 50% 23628 | -3/Armory | Breached Obliterator storage 23636 | -3/Armory | Found Disassembled Obliterator 23669 | -3/Armory | Found PL-3XN's Ring of Power 23678 | -3/Armory | Core integrity fell below 20% 23682 | -3/Armory | Destroyed by Vortex Trap Last Messages --------------- 23674_ G-73 Enforcer Lgt. Quantum Reactor severed. 23675_ Vmp. Broadsword destroyed. 23679_ Imp. Trap Extractor dropped Vortex Trap. 23679_ B-86 Titan exits siege mode. 23680_ Imp. Trap Extractor dropped Vortex Trap. 23680_ System corrupted: Substantial component data lost. 23680_ C-45 Heavy ARC bursts open, deploying its payload. 23680_ G-73 Enforcer unfolds itself. 23680_ G-67 Veteran unfolds itself. 23680_ I-47 Archangel unfolds itself. 23680_ G-73 Enforcer knocked back. 23680_ Penetrated by Slug. 23681_ Installed Vortex Trap. 23682_ Exp. Thermal Shield destroyed. 23682_ Triggered Vortex Trap. 23682_ A wave of accelerated entropy washes over the area. Map ----- +----------------------------------------------------+ | ??????????????????? ???????????????????? | | ??????????????????""" """ ???????????????????? | | ??????????????????""F """ "???????????????????? | | ???????????????????" """ ##################### | | ?????????????????#""" | | ?????????????????#""" | | ????????!???????## | | ???????????????? | | ??????????????????????# #####+#+######## | | ??????????????????????# # ! #?? | | ??????????????????????# # """ "" #?? | | ??????????????????????# #"###### """ """ #?? | | ??????????????????????# "##????# """ F" ### | | ?????????????????????## ##?????# """ + | | ?????????????????????#T #??????# """ "" ## | | ????????????????####?## #??????# """ ## | | ????????????????#""#### ![##?????# """ ## | | ????????????????# ^ !=%#?????# ## | | ????????????????# !=[#?????# ! ### | | ????????????????# ##########?????# ! #?? | | ????????????????# #??????????????# #?? | | ????????????????# #?###########################?? | | ????????????????# #?#""" g !#???????????????? | | ????????????????# "?#"" "*" ""%#???????????????? | | ????????????????# "?#"% " " "/#???????????????? | | ????????????????# ="?#""g@&Y " " #???????????????? | | ????????????????#!!"##""!glgg #???????????????? | | ????????????????#* #"#"BB* """ #???????????????? | | ????????????????#![[gg BBg! " #???????????????? | | ????????????????# %gY g "" """ #???????????????? | | ????????????????# ### Tl #???????????????? | | ????????????????##"#?#"""""""""""#???????????????? | | ?????????????????###?############????????????????? | | ?????????????????????????????????????????????????? | | ?????????????????????????????????????????????????? | | ?????????????????????????????????????????????????? | | ?????????????????????????????????????????????????? | | ?????????????????????????????????????????????????? | | | | | | | | | | | | | | | | | | | | | | | | | +----------------------------------------------------+ Best States ------------- Heat Dissipation 96 Energy Generation 55 Energy Capacity 700 Matter Stores 300 Matter Capacity 300 Sight Range 16 Robot Scan Range 20 Terrain Scan Density 10 ECM Strength 2 Jamming Range 16 Armor Coverage 600 Resistance: TH 50 Propulsion Shielding 66 Melee Speed Boost 20 Evasion (%) 57 Melee Accuracy 8 Core Analysis 11 Recoil Reduction 4 Offensive Hacking 12 Authchip Count 4 Trap Extractor Capacity 6 Item Schematics ----------------- Lrg. Storage Unit | -8/Recycling | Hacked Deep Structural Scanner | -6/Factory | Extrapolated Mak. Light Armor Plating | -6/Factory | Extrapolated Beamcaster | -6/Factory | Extrapolated Mak. Kinetic Plating | -6/Factory | Extrapolated Mak. Flight Unit | -6/Factory | Extrapolated Mak. Propulsion Shielding | -6/Factory | Extrapolated Mak. Medium Armor Plating | -6/Factory | Extrapolated Mak. Ablative Armor | -6/Factory | Extrapolated Energy Deflector | -6/Factory | Extrapolated Mak. Axe | -6/Lower Caves | Extrapolated Mak. Hacking Suite | -6/Lower Caves | Extrapolated Lgt. Humpback | -6/Lower Caves | Extrapolated Vmp. Humpback | -6/Lower Caves | Extrapolated Slug Cannon | -6/Lower Caves | Extrapolated Ripper | -6/Lower Caves | Extrapolated Mak. Coolant Network | -6/Lower Caves | Extrapolated Combat Drone Bay | -6/Data Miner | Free Lgt. Regenerative Plating | -6/Data Miner | Free Cld. Gravmag System | -6/Data Miner | Free Exp. Heat Sink | -6/Data Miner | Free Neutron Cannon | -6/Data Miner | Free Imp. Gyrokinetic Inverter | -6/Data Miner | Free Adv. Thermal Generator | -6/Data Miner | Free Hvy. Gauss Cannon | -6/Data Miner | Free Mak. Thermal Plating | -5/Proximity Caves | Extrapolated Hvy. Battle Rifle | -5/Proximity Caves | Extrapolated Mak. Core Shielding | -5/Factory | Extrapolated Mak. Power Source | -5/Factory | Extrapolated Mak. Spear | -5/Factory | Extrapolated Mak. Targeting Computer | -5/Factory | Extrapolated 0b10 Decoder Chip [Generic] | -5/Factory | Extrapolated 0b10 Decoder Chip [Scout] | -5/Factory | Extrapolated 0b10 Decoder Chip [Skirmisher] | -5/Factory | Extrapolated Mak. System Restoration Module | -5/Factory | Extrapolated Hvy. Beamcaster | -5/Factory | Extrapolated Plasma Flamer | -5/Factory | Extrapolated Mak. Heavy Armor Plating | -5/Warlord | Extrapolated Mak. Salvage Targeting Computer | -5/Warlord | Extrapolated Machine Rigger | -5/Warlord | Extrapolated Imp. Arc Thrower | -5/Warlord | Extrapolated Multitool | -5/Warlord | Extrapolated Enh. Flamer | -5/Warlord | Extrapolated Mak. Laser | -5/Warlord | Extrapolated Mak. Hammer | -5/Warlord | Extrapolated Mak. System Shield | -5/Warlord | Extrapolated Mak. Shrapnel Gun | -5/Warlord | Extrapolated Bore Cannon | -5/Warlord | Extrapolated Heat Bomb Trap | -5/Warlord | Extrapolated Mak. Trap Scanner | -4/Factory | Extrapolated Vmp. Brace Plating | -4/Factory | Extrapolated Mak. Weapon Shielding | -4/Factory | Extrapolated Greatsword | -4/Factory | Hacked Vmp. Broadsword | -4/Factory | Extrapolated Cmb. Linear Gravjet | -3/Research | Hacked Robot Schematics ------------------ G-47 Trooper | -8/Storage | Hacked R-10 Processor | -6/Data Miner | Free Y-54 Guardian | -6/Data Miner | Free S-27 Virus | -6/Data Miner | Free L-41 Fighter | -6/Data Miner | Free M-22 Extractor | -6/Data Miner | Free Fabricated ------------ Cld. Gravmag System | x1 | -5/Factory | Authchip Greatsword | x2 | -4/Factory | Authchip Vmp. Broadsword | x1 | -4/Factory | Authchip Quantum Reactor | x2 | -3/Research | Preloaded Repaired ---------- Hvy. Armor Plating | 17% | -8/Materials Exp. Sensor Array | 62% | -8/Materials | Broken Cld. Gravmag System | 14% | -3/Armory Studied --------- Lgt. Treads | -8/Materials | Hacked Cmb. Airjet | -5/Factory | Hacked Hvy. Missile Launcher | -5/Factory | Hacked Cmb. Gravmag System | -4/Factory | Hacked Imp. Gyrokinetic Inverter | -4/Factory | Hacked Imp. Remote Datajack | -4/Factory | Hacked Antigrav Array | -3/Research | Hacked Lrn. Missile Launcher | -3/Research | Hacked Alien Tech Used ----------------- None Achievements -------------- None Challenges ------------ None Game ------ Seed DecoderSixTube Manual? 0 Play Time 03:00:59 Cumulative 257.7 hours Start 2026.01.15 @ 16:23:22 End 2026.01.16 @ 23:32:36 Sessions 11 Manual Loads 0 Difficulty Rogue Special Mode None Game No. 245 Rogue 245 Adventurer 0 Explorer 0 Win Type - Total 12 Types 8/1/2/0/0/0/0/0/0/1 Lore% 88 Gallery% 79 Achievement% 63 Wizard Run 0 Options --------- Layout 1 ASCII 0 Keyboard 1 Movement Arrows Keybinds 0 Fullscreen 1 Font 24/Smallcaps Map View 50x40 Zoom Use 0% Tactical HUD 1 Map Filters NONE Filters NONE Steam 1 RUN: e2294502-b7c1-412f-a038-80b12f241a9b